Workbook

Sheet Leht1
C1: Lisa Tartu Vallavolikogu 28.02.2019 määruse nr 6 juurde
C2: TARTU VALLA 2019. AASTA EELARVE
A3: I | C3: PÕHITEGEVUSE TULUD
C4: Kirje nimetus | D4: Summa
A5: 30 | C5: MAKSUTULUD | D5: =+D6+D7 -> 10603300
A6: 3000 | C6: Füüsilise isiku tulumaks | D6: 10270300
A7: 3030 | C7: Maamaks | D7: 333000
A8: 32 | C8: TULU KAUPADE JA TEENUSTE MÜÜKGIST | D8: 1384572
A9: 35 | C9: SAADAVAD TOETUSED TEGEVUSKULUDEKS | D9: =+D10+D11+D14 -> 5821512
A10: 3500 | C10: Toetused tegevuskuludeks | D10: 97126
C11: Mittesihtotstarbelised toetused | D11: =+D12+D13 -> 5546629
A12: 35200 | C12: s.h.tasandusfond (lg 1) | D12: 1619893
A13: 35201 | C13: s.h.toetusfond (lg 2) | D13: 3926736
A14: 3521 | C14: tegevustoetus | D14: 177757
A15: 38 | C15: MUUD TEGEVUSTULUD | D15: 50000
A16: 382520 | C16: Maa-ainese kaevand.õiguse tasu | D16: 40000
A17: 382540 | C17: Laekumine vee erikasutusest | D17: 10000
C18: PÕHITEGEVUSE TULUD KOKKU | D18: =+D5+D8+D9+D15 -> 17859384
A20: II | C20: PÕHITEGEVUSE KULUD
A21: klassi-fikaator | C21: Põhitegevuse kulude jaotus tegevusalade lõikes | D21: Eelarve
A22: 01 | C22: ÜLDISED VALITSUSSEKTORI TEENUSED | D22: =+D23+D26+D30+D31+D33+D36 -> 991881
A23: 01111 | C23: Valla- ja linnavolikogu | D23: =+D24+D25 -> 94825
B24: 50 | C24: Personalikulud (koos maksudega) | D24: 69025
B25: 55 | C25: Majandamiskulud | D25: 25800
A26: 01112 | C26: Valla- ja linnavalitsus | D26: =+D27+D28+D29 -> 678415
B27: 50 | C27: Personalikulud (koos maksudega) | D27: 477730
B28: 55 | C28: Majandamiskulud | D28: 195685
B29: 60 | C29: Muud kulud | D29: 5000
A30: 01114 | B30: 60 | C30: Reservfond | D30: 130000
A31: 01310 | C31: Üldised personaliteenuse | D31: 515
B32: 50 | C32: Personalikulud | D32: 515
A33: 01600 | C33: Muud üldised valitsussektori teenused | D33: 38126
B34: 50 | C34: Personalikulud | D34: 36000
B35: 55 | C35: Majandamiskulud | D35: 2126
A36: 01800 | C36: Üldiseloomuga ülekanded valitsussektoris | D36: 50000
B37: 45 | C37: Antud toetused, liikmemaksud | D37: 50000
A38: 02 | C38: RIIGIKAITSE | D38: 10000
A39: 02200 | C39: Tsiviilkaitse | D39: 10000
B40: 55 | C40: Majandamiskulud | D40: 10000
A41: 03 | C41: AVALIK KORD JA JULGEOLEK | D41: 11000
A42: 03200 | B42: 55 | C42: Päästeteenused | D42: 11000
B43: 55 | C43: Majandamiskulud | D43: 11000
A44: 04 | C44: MAJANDUS | D44: =+D45+D48+D50+D53+D56+D58+D61 -> 940135
A45: 045101 | C45: Autotransport | D45: =+D46+D47 -> 43780
B46: 50 | C46: Personalikulud (koos maksudega) | D46: 16060
B47: 55 | C47: Majandamiskulud | D47: 27720
A48: 045102 | C48: Maanteetransport | D48: 400000
B49: 55 | C49: Majandamiskulud | D49: 400000
A50: 04520 | C50: Veetransport | D50: =+D51+D52 -> 10315
B51: 50 | C51: Personalikulud (koos maksudega) | D51: 4815
B52: 55 | C52: Majandamiskulud | D52: 5500
A53: 04710 | C53: Kaubandus ja laondus | D53: =+D54+D55 -> 9600
B54: 45 | C54: Sihtotstarbelised eraldised | D54: 2100
B55: 55 | C55: Majandamiskulud | D55: 7500
A56: 04740 | C56: Üldmajanduslikud arendusprojektid | D56: =+D57 -> 87500
B57: 55 | C57: Majandamiskulud | D57: 87500
A58: 049001 | C58: Majanduse haldus | D58: =+D59+D60 -> 322240
B59: 50 | C59: Personalikulud (koos maksudega) | D59: 235000
B60: 55 | C60: Majandamiskulud | D60: 87240
A61: 049002 | C61: Tuuliku 11 (lasteaia hoone) | D61: 66700
B62: 55 | C62: Majandamiskulud | D62: 66700
A63: 05 | C63: KESKKONNAKAITSE | D63: =+D64+D67 -> 520600
A64: 05100 | C64: Jäätmekäitlus (sh prügivedu) | D64: 39000
B65: 45 | C65: Antud toetused | D65: 15000
B66: 55 | C66: Majandamiskulud | D66: 24000
A67: 05101 | C67: Avalike alade puhastus | D67: 481600
B68: 55 | C68: Majandamiskulud | D68: 481600
A69: 06 | C69: ELAMU- JA KOMMUNAALMAJANDUS | D69: =+D70+D72+D74+D76 -> 195100
A70: 06300 | C70: Veevarustus | D70: 6700
B71: 5512 | C71: Majandamiskulud | D71: 6700
A72: 06400 | C72: Tänavavalgustus | D72: 80000
B73: 55 | C73: Majandamiskulud | D73: 80000
A74: 066051 | C74: Elamumajandus | D74: =+D75 -> 58000
B75: 55 | C75: Majandamiskulud | D75: 58000
A76: 066052 | C76: Muu elamu- ja kommunaalmajandus | D76: =+D77+D78 -> 50400
B77: 50 | C77: Personalikulud (koos maksudega) | D77: 20000
B78: 55 | C78: Majandamiskulud | D78: 30400
A79: 07 | C79: Üldmeditsiiniteenused | D79: 4400
A80: 07210 | B80: 55 | C80: Majandamiskulud | D80: 4400
A81: 08 | C81: VABA AEG, KULTUUR, RELIGIOON | D81: =+D82+D85+D86+D89+D90+D93+D97+D99+D102+D105+D108+D111+D114+D117+D120+D123+D126+D129+D132+D135+D138+D141+D144+D147+D150+D153+D156+D158+D161+D163+D165 -> 1705974
A82: 081021 | C82: Kõrveküla Spordihall | D82: =+D83+D84 -> 45150
B83: 50 | C83: Personalikulud (koos maksudega) | D83: 26300
B84: 55 | C84: Majandamiskulud | D84: 18850
A85: 081023 | B85: 55 | C85: Ülevallalised spordiüritused | D85: 42000
A86: 081024 | C86: Spordikool, Lähte Spordihall | D86: =+D87+D88 -> 306717
B87: 50 | C87: Personalikulud (koos maksudega) | D87: 212517
B88: 55 | C88: Majandamiskulud | D88: 94200
A89: 081025 | B89: 55 | C89: Arvlemine spordiklubid | D89: 55000
A90: 081022 | C90: Laeva Spordihoone | D90: =+D91+D92 -> 25605
B91: 50 | C91: Personalikulud (koos maksudega) | D91: 4790
B92: 55 | C92: Majandamiskulud | D92: 20815
A93: 081026 | C93: Valla spordijuht | D93: =+D94+D95+D96 -> 46740
B94: 45 | C94: Tegevustoetus | D94: 28740
B95: 50 | C95: Personalikulud (koos maksudega) | D95: 17000
B96: 55 | C96: Majandamiskulud | D96: 1000
A97: 081027 | C97: Terviserajad | D97: 80000
B98: 55 | C98: Majandamiskulud | D98: 80000
A99: 081072 | C99: Laeva Noortekeskus | D99: =+D100+D101 -> 46515
B100: 50 | C100: Personalikulud (koos maksudega) | D100: 20825
B101: 55 | C101: Majandamiskulud | D101: 25690
A102: 081073 | C102: Tabivere Noortekeskus | D102: =+D103+D104 -> 24058
B103: 50 | C103: Personalikulud (koos maksudega) | D103: 16650
B104: 55 | C104: Majandamiskulud | D104: 7408
A105: 081074 | C105: Maarja-Magdaleena Noortekeskus | D105: =+D106+D107 -> 26372
B106: 50 | C106: Personalikulud (koos maksudega) | D106: 16650
B107: 55 | C107: Majandamiskulud | D107: 9722
A108: 081076 | C108: Lähte Noortekeskus | D108: =+D109+D110 -> 38875
B109: 50 | C109: Personalikulud (koos maksudega) | D109: 18875
B110: 55 | C110: Majandamiskulud | D110: 20000
A111: 08109 | C111: Ülevallalised kultuuriüritused | D111: =+D112+D113 -> 145000
B112: 4500 | C112: Antud toetused | D112: 70000
B113: 55 | C113: Majandamiskulud | D113: 75000
A114: 082012 | C114: Lähte Ühisraamatukogu | D114: =+D115+D116 -> 41662
B115: 50 | C115: Personalikulud (koos maksudega) | D115: 29142
B116: 55 | C116: Majandamiskulud | D116: 12520
A117: 082013 | C117: Äksi Raamatukogu | D117: =+D118+D119 -> 53645
B118: 50 | C118: Personalikulud (koos maksudega) | D118: 16620
B119: 55 | C119: Majandamiskulud | D119: 37025
A120: 082014 | C120: Tammistu Raamatukogu | D120: =+D121+D122 -> 19915
B121: 50 | C121: Personalikulud (koos maksudega) | D121: 14130
B122: 55 | C122: Majandamiskulud | D122: 5785
A123: 082015 | C123: Vedu Raamatukogu | D123: =+D124+D125 -> 18324
B124: 50 | C124: Personalikulud (koos maksudega) | D124: 9104
B125: 55 | C125: Majandamiskulud | D125: 9220
A126: 082016 | C126: Kõrveküla Raamatukogu | D126: =+D127+D128 -> 25750
B127: 50 | C127: Personalikulud (koos maksudega) | D127: 10600
B128: 55 | C128: Majandamiskulud | D128: 15150
A129: 082017 | C129: Kõrveküla Raamatukogu (maakonna raamatukogu) | D129: =+D130+D131 -> 177757
B130: 50 | C130: Personalikulud (koos maksudega) | D130: 73851
B131: 55 | C131: Majandamiskulud (teavikud) | D131: 103906
A132: 082011 | C132: Laeva Ramatukogu | D132: =+D133+D134 -> 27200
B133: 50 | C133: Personalikulud (koos maksudega) | D133: 14000
B134: 55 | C134: Majandamiskulud | D134: 13200
A135: 082018 | C135: Tabivere Raamatukogu | D135: =+D136+D137 -> 30300
B136: 50 | C136: Personalikulud (koos maksudega) | D136: 20900
B137: 55 | C137: Majandamiskulud | D137: 9400
A138: 082019 | C138: Elistvere Raamatukogu | D138: =+D139+D140 -> 16490
B139: 50 | C139: Personalikulud (koos maksudega) | D139: 9640
B140: 55 | C140: Majandamiskulud | D140: 6850
A141: 08201a | C141: Maarja raamatukogu | D141: =+D142+D143 -> 18075
B142: 50 | C142: Personalikulud (koos maksudega) | D142: 10760
B143: 55 | C143: Majandamiskulud | D143: 7315
A144: 08201b | C144: Piirissaare raamatukogu | D144: =+D145+D146 -> 5740
B145: 50 | C145: Personalikulud (koos maksudega) | D145: 4340
B146: 55 | C146: Majandamiskulud | D146: 1400
A147: 082021 | C147: Laeva kultuurimaja | D147: =+D148+D149 -> 51650
B148: 50 | C148: Personalikulud (koos maksudega) | D148: 21100
B149: 55 | C149: Majandamiskulud | D149: 30550
A150: 082023 | C150: Maarja-Magdaleena rahvamaja | D150: =+D151+D152 -> 58430
B151: 50 | C151: Personalikulud (koos maksudega) | D151: 26680
B152: 55 | C152: Majandamiskulud | D152: 31750
A153: 082022 | C153: Tabivere rahvamaja | D153: =+D154+D155 -> 132444
B154: 50 | C154: Personalikulud (koos maksudega) | D154: 52984
B155: 55 | C155: Majandamiskulud | D155: 79460
A156: 082031 | C156: Jääaja Keskus | D156: 65000
B157: 4521 | C157: Antud toetused | D157: 65000
A158: 082032 | C158: Tabivere muuseum | D158: =+D159+D160 -> 7660
B159: 45 | C159: Toetused | D159: 4760
B160: 55 | C160: Majandamiskulud | D160: 2900
A161: 08300 | C161: Valla ajaleht, veebileht | D161: 46000
B162: 55 | C162: Majandamiskulud | D162: 46000
A163: 08400 | C163: Religioon | D163: 9600
B164: 45 | C164: Toetused | D164: 9600
A165: 08600 | C165: Muu vaba aeg, kultuur | D165: =+D166+D167 -> 18300
B166: 50 | C166: Personalikulud (koos maksudega) | D166: 11000
B167: 55 | C167: Majandamiskulud | D167: 7300
A168: 09 | C168: HARIDUS | D168: =+D169+D173+D177+D180+D184+D186+D189+D192+D195+D197+D200+D203+D206+D209+D212+D215+D218+D220+D223+D225+D227+D230+D232+D235+D238+D240+D243+D246+D249+D251+D254+D257+D259 -> 10471614
A169: 091101 | C169: Kõrveküla Lasteaed, Raadi lastehoid | D169: =+D170+D171+D172 -> 1833181
B170: 45 | C170: Antud toetused | D170: 34538
B171: 50 | C171: Personalikulud (koos maksudega) | D171: 1119909
B172: 55 | C172: Majandamiskulud | D172: 678734
A173: 091102 | C173: Lähte Lasteaed | D173: =+D174+D175+D176 -> 740653
B174: 45 | C174: Antud toetused | D174: 2448
B175: 50 | C175: Personalikulud (koos maksudega) | D175: 455570
B176: 55 | C176: Majandamiskulud | D176: 282635
A177: 091107 | C177: Laeva Lasteaed | D177: =+D178+D179 -> 198822
B178: 50 | C178: Personalikulud (koos maksudega) | D178: 144062
B179: 55 | C179: Majandamiskulud | D179: 54760
A180: 091106 | C180: Raadi Lasteaed Ripsik | D180: =+D181+D182+D183 -> 409900
B181: 45 | C181: Antud toetused | D181: 45000
B182: 50 | C182: Personalikulud (koos maksudega) | D182: 195000
B183: 55 | C183: Majandamiskulud | D183: 169900
A184: 091104 | C184: Arvlemised, lasteaedade kohamaks | D184: 214000
B185: 55 | C185: Õppevahendid ja kohamaksud teistele omavalitsustele | D185: 214000
A186: 091108 | C186: Tabivere Lasteaed | D186: =+D187+D188 -> 505666
B187: 50 | C187: Personalikulud (koos maksudega) | D187: 423766
B188: 55 | C188: Majandamiskulud | D188: 81900
A189: 092121 | C189: Kõrveküla Põhikool | D189: =+D190+D191 -> 711677
B190: 50 | C190: Personalikulud (koos maksudega) | D190: 247627
B191: 55 | C191: Majandamiskulud | D191: 464050
A192: 092122 | C192: Kõrveküla Põhikool (õpetajad) | D192: =+D193+D194 -> 883111
B193: 50 | C193: Personalikulud (koos maksudega) | D193: 852676
B194: 55 | C194: Majandamiskulud | D194: 30435
A195: 092125 | C195: Kõrveküla Põhikool ( juhid ) | D195: =+D196 -> 59407
B196: 50 | C196: Personalikulud | D196: 59407
A197: 092126 | C197: Laeva Põhikool | D197: =+D198+D199 -> 129368
B198: 50 | C198: Personalikulud (koos maksudega) | D198: 91118
B199: 55 | C199: Majandamiskulud | D199: 38250
A200: 092127 | C200: Laeva Põhikool (õpetajad) | D200: =+D201+D202 -> 197201
B201: 50 | C201: Personalikulud (koos maksudega) | D201: 193179
... 123 more rows
